[Event "Early-Titled-Tuesday-Blitz-October-03-2023"]
[Site "Chess.com"]
[Date "2023.10.03"]
[Round "9"]
[White "Fradi82"]
[Black "GMJustin"]
[Result "1-0"]
[WhiteElo "2335"]
[BlackElo "2204"]
[TimeControl "180+1"]
[EndTime "9:46:02 PDT"]
[Termination "Fradi82 won on time"]

1. e4 {[%clk 0:03:00.9]} 1... e5 {[%clk 0:02:45.5]} 2. Nf3 {[%clk 0:03:00.1]}
2... Nc6 {[%clk 0:02:44.9]} 3. Bc4 {[%clk 0:02:58.6]} 3... Bc5 {[%clk
0:02:43.9]} 4. d3 {[%clk 0:02:55.6]} 4... a6 {[%clk 0:02:34.5]} 5. Bg5 {[%clk
0:02:48.5]} 5... Nge7 {[%clk 0:02:24.1]} 6. Bb3 {[%clk 0:02:38.5]} 6... d6
{[%clk 0:02:15.2]} 7. c3 {[%clk 0:02:33.7]} 7... O-O {[%clk 0:02:08.1]} 8. d4
{[%clk 0:02:33.1]} 8... Ba7 {[%clk 0:02:06.2]} 9. O-O {[%clk 0:02:31.3]} 9...
Bg4 {[%clk 0:01:56.2]} 10. d5 {[%clk 0:02:08.5]} 10... Nb8 {[%clk 0:01:26]} 11.
h3 {[%clk 0:02:07.6]} 11... Bh5 {[%clk 0:01:23.1]} 12. Nbd2 {[%clk 0:02:05.3]}
12... Nd7 {[%clk 0:01:20.6]} 13. Bc2 {[%clk 0:01:53.3]} 13... h6 {[%clk
0:01:09.1]} 14. Bh4 {[%clk 0:01:49.9]} 14... g5 {[%clk 0:01:02.9]} 15. Bg3
{[%clk 0:01:50.3]} 15... f5 {[%clk 0:01:00.9]} 16. exf5 {[%clk 0:01:48.5]} 16...
Nxf5 {[%clk 0:00:58.5]} 17. Bxf5 {[%clk 0:01:48.3]} 17... Rxf5 {[%clk 0:00:58]}
18. Qc2 {[%clk 0:01:47.1]} 18... Qf8 {[%clk 0:00:48.7]} 19. Qd3 {[%clk
0:01:42.8]} 19... Nc5 {[%clk 0:00:39.4]} 20. Qe2 {[%clk 0:01:27.5]} 20... e4
{[%clk 0:00:29.4]} 21. Nxe4 {[%clk 0:01:27.4]} 21... Re8 {[%clk 0:00:28.6]} 22.
Qc2 {[%clk 0:01:08.6]} 22... Nxe4 {[%clk 0:00:26.7]} 23. Nd4 {[%clk 0:01:07.6]}
23... Bxd4 {[%clk 0:00:14.9]} 24. cxd4 {[%clk 0:01:06.4]} 24... Nxg3 {[%clk
0:00:13.8]} 25. fxg3 {[%clk 0:01:07.3]} 25... Rxf1+ {[%clk 0:00:12]} 26. Rxf1
{[%clk 0:01:08.2]} 26... Qg7 {[%clk 0:00:11.8]} 27. Qf5 {[%clk 0:01:02.3]} 27...
Qxd4+ {[%clk 0:00:07.4]} 28. Kh2 {[%clk 0:01:02.6]} 28... Qg7 {[%clk 0:00:07.6]}
29. Qc2 {[%clk 0:00:41.3]} 29... Bg6 {[%clk 0:00:07.4]} 30. Qb3 {[%clk
0:00:39.6]} 30... b6 {[%clk 0:00:05.8]} 31. Qc4 {[%clk 0:00:38]} 31... a5 {[%clk
0:00:05.6]} 32. b4 {[%clk 0:00:35.7]} 32... axb4 {[%clk 0:00:05]} 33. Qxb4
{[%clk 0:00:36.4]} 33... Re7 {[%clk 0:00:04.6]} 34. a4 {[%clk 0:00:34]} 34...
Qe5 {[%clk 0:00:03.9]} 35. Qb5 {[%clk 0:00:33.9]} 35... h5 {[%clk 0:00:02.4]}
36. Qc6 {[%clk 0:00:31.8]} 36... h4 {[%clk 0:00:02.2]} 37. Rf3 {[%clk
0:00:30.9]} 37... hxg3+ {[%clk 0:00:01.4]} 38. Kg1 {[%clk 0:00:28]} 1-0

[Event "Early-Titled-Tuesday-Blitz-October-03-2023"]
[Site "Chess.com"]
[Date "2023.10.03"]
[Round "9"]
[White "jaskol95"]
[Black "Arystanner"]
[Result "0-1"]
[WhiteElo "2625"]
[BlackElo "2824"]
[TimeControl "180+1"]
[EndTime "9:46:05 PDT"]
[Termination "Arystanner won by checkmate"]

1. d4 {[%clk 0:03:00.9]} 1... Nf6 {[%clk 0:02:59.9]} 2. Nc3 {[%clk 0:03:01.2]}
2... d5 {[%clk 0:02:59.8]} 3. Bf4 {[%clk 0:03:01.2]} 3... e6 {[%clk 0:02:55.9]}
4. Nb5 {[%clk 0:03:00.6]} 4... Bb4+ {[%clk 0:02:56.3]} 5. c3 {[%clk 0:02:58.5]}
5... Ba5 {[%clk 0:02:56.7]} 6. a4 {[%clk 0:02:59.2]} 6... a6 {[%clk 0:02:54]} 7.
b4 {[%clk 0:02:58.2]} 7... Bxb4 {[%clk 0:02:53.7]} 8. cxb4 {[%clk 0:01:59.7]}
8... axb5 {[%clk 0:02:52.1]} 9. axb5 {[%clk 0:02:00.2]} 9... Rxa1 {[%clk
0:02:52.5]} 10. Qxa1 {[%clk 0:02:01]} 10... O-O {[%clk 0:02:48.7]} 11. e3 {[%clk
0:02:00.6]} 11... Nh5 {[%clk 0:02:48.4]} 12. Bg3 {[%clk 0:01:50.1]} 12... Nd7
{[%clk 0:02:41.7]} 13. Nf3 {[%clk 0:01:49.1]} 13... Nb6 {[%clk 0:02:33.1]} 14.
Bd3 {[%clk 0:01:49.2]} 14... Bd7 {[%clk 0:02:33.4]} 15. Ne5 {[%clk 0:01:39.6]}
15... f6 {[%clk 0:02:25.8]} 16. Nxd7 {[%clk 0:01:37.4]} 16... Qxd7 {[%clk
0:02:26.7]} 17. Qd1 {[%clk 0:01:30.9]} 17... Nxg3 {[%clk 0:02:24.6]} 18. hxg3
{[%clk 0:01:24.5]} 18... f5 {[%clk 0:02:24.8]} 19. g4 {[%clk 0:01:24.2]} 19...
Nc4 {[%clk 0:02:24.2]} 20. gxf5 {[%clk 0:01:23.7]} 20... exf5 {[%clk 0:02:25.1]}
21. Qf3 {[%clk 0:00:57.9]} 21... Nb2 {[%clk 0:02:06.1]} 22. Qe2 {[%clk
0:00:50.2]} 22... Nxd3+ {[%clk 0:02:05.2]} 23. Qxd3 {[%clk 0:00:51.1]} 23... h6
{[%clk 0:01:48.4]} 24. Ke2 {[%clk 0:00:48.9]} 24... f4 {[%clk 0:01:47.7]} 25.
exf4 {[%clk 0:00:19.2]} 25... Rxf4 {[%clk 0:01:47.1]} 26. Rh3 {[%clk 0:00:19]}
26... Qg4+ {[%clk 0:01:46.8]} 27. Kf1 {[%clk 0:00:19.1]} 27... Rxd4 {[%clk
0:01:46.7]} 28. Qf3 {[%clk 0:00:19.6]} 28... Qxf3 {[%clk 0:01:45.1]} 29. Rxf3
{[%clk 0:00:19.4]} 29... Rxb4 {[%clk 0:01:45.7]} 30. Rc3 {[%clk 0:00:19.4]}
30... Rc4 {[%clk 0:01:46.2]} 31. Re3 {[%clk 0:00:06.4]} 31... Kf7 {[%clk
0:01:43.7]} 32. Re5 {[%clk 0:00:06.1]} 32... Rc5 {[%clk 0:01:42.9]} 33. Ke2
{[%clk 0:00:05.6]} 33... Rxb5 {[%clk 0:01:42.7]} 34. Kd3 {[%clk 0:00:05.9]}
34... c6 {[%clk 0:01:43]} 35. Kd4 {[%clk 0:00:06.5]} 35... Rb2 {[%clk
0:01:43.1]} 36. Rf5+ {[%clk 0:00:06.4]} 36... Ke6 {[%clk 0:01:43]} 37. Rf3
{[%clk 0:00:07.3]} 37... Rc2 {[%clk 0:01:40.9]} 38. Rg3 {[%clk 0:00:06.3]} 38...
Rxf2 {[%clk 0:01:38.9]} 39. Rxg7 {[%clk 0:00:06]} 39... Rf4+ {[%clk 0:01:35.3]}
40. Kc5 {[%clk 0:00:05.9]} 40... Rc4+ {[%clk 0:01:35.4]} 41. Kb6 {[%clk
0:00:06.7]} 41... Rb4+ {[%clk 0:01:36]} 42. Kc5 {[%clk 0:00:06.9]} 42... Rb5+
{[%clk 0:01:36.4]} 43. Kd4 {[%clk 0:00:07.6]} 43... Kf5 {[%clk 0:01:36.4]} 44.
g3 {[%clk 0:00:05.7]} 44... h5 {[%clk 0:01:36.4]} 45. Ke3 {[%clk 0:00:05.1]}
45... Rb4 {[%clk 0:01:36.1]} 46. Kf3 {[%clk 0:00:05.3]} 46... Rb3+ {[%clk
0:01:36.3]} 47. Kf2 {[%clk 0:00:05.5]} 47... d4 {[%clk 0:01:36.7]} 48. Rf7+
{[%clk 0:00:05.6]} 48... Ke4 {[%clk 0:01:37.1]} 49. Re7+ {[%clk 0:00:06.1]}
49... Kd3 {[%clk 0:01:37.6]} 50. Re5 {[%clk 0:00:06.2]} 50... Rb5 {[%clk
0:01:38.3]} 51. Re2 {[%clk 0:00:04.4]} 51... Rf5+ {[%clk 0:01:38.2]} 52. Ke1
{[%clk 0:00:05]} 52... c5 {[%clk 0:01:38.8]} 53. Rd2+ {[%clk 0:00:05.5]} 53...
Kc4 {[%clk 0:01:38.8]} 54. Rh2 {[%clk 0:00:05.6]} 54... b5 {[%clk 0:01:38.7]}
55. Kd2 {[%clk 0:00:06.3]} 55... b4 {[%clk 0:01:39]} 56. Kc1 {[%clk 0:00:06.9]}
56... b3 {[%clk 0:01:39.2]} 57. g4 {[%clk 0:00:06.5]} 57... hxg4 {[%clk
0:01:39]} 58. Rg2 {[%clk 0:00:07.2]} 58... Kc3 {[%clk 0:01:36.1]} 59. Rg3+
{[%clk 0:00:07.3]} 59... d3 {[%clk 0:01:36.6]} 60. Rg1 {[%clk 0:00:06.4]} 60...
c4 {[%clk 0:01:37]} 61. Kb1 {[%clk 0:00:06.8]} 61... g3 {[%clk 0:01:37.1]} 62.
Rc1+ {[%clk 0:00:07.1]} 62... Kb4 {[%clk 0:01:37.2]} 63. Kb2 {[%clk 0:00:07.8]}
63... Rf2+ {[%clk 0:01:37]} 64. Kb1 {[%clk 0:00:08.4]} 64... g2 {[%clk
0:01:37.3]} 65. Ka1 {[%clk 0:00:04.6]} 65... b2+ {[%clk 0:01:36.3]} 66. Kb1
{[%clk 0:00:04.1]} 66... bxc1=Q+ {[%clk 0:01:37]} 67. Kxc1 {[%clk 0:00:04.7]}
67... g1=Q# {[%clk 0:01:37.1]} 0-1

[Event "Early-Titled-Tuesday-Blitz-October-03-2023"]
[Site "Chess.com"]
[Date "2023.10.03"]
[Round "9"]
[White "elmusmolamas"]
[Black "Casper"]
[Result "0-1"]
[WhiteElo "2500"]
[BlackElo "2434"]
[TimeControl "180+1"]
[EndTime "9:46:09 PDT"]
[Termination "Casper won by checkmate"]

1. e4 {[%clk 0:03:00.9]} 1... c5 {[%clk 0:02:57.8]} 2. Nc3 {[%clk 0:02:59.4]}
2... d6 {[%clk 0:02:58]} 3. Nge2 {[%clk 0:03:00.2]} 3... g6 {[%clk 0:02:57]} 4.
d4 {[%clk 0:03:00.2]} 4... cxd4 {[%clk 0:02:57.2]} 5. Nxd4 {[%clk 0:03:01.1]}
5... Bg7 {[%clk 0:02:57.5]} 6. g3 {[%clk 0:03:01.9]} 6... Nf6 {[%clk 0:02:56.7]}
7. Bg2 {[%clk 0:03:01.7]} 7... O-O {[%clk 0:02:57.4]} 8. O-O {[%clk 0:03:02.4]}
8... Nc6 {[%clk 0:02:57.3]} 9. Nde2 {[%clk 0:03:03.1]} 9... e5 {[%clk
0:02:54.5]} 10. h3 {[%clk 0:02:56.8]} 10... Be6 {[%clk 0:02:54.5]} 11. Be3
{[%clk 0:02:57.4]} 11... Qd7 {[%clk 0:02:53.9]} 12. Kh2 {[%clk 0:02:56.9]} 12...
Rad8 {[%clk 0:02:50.8]} 13. Nd5 {[%clk 0:02:49.7]} 13... Bxd5 {[%clk 0:02:37]}
14. exd5 {[%clk 0:02:50.6]} 14... Ne7 {[%clk 0:02:37.9]} 15. c4 {[%clk
0:02:46.4]} 15... a6 {[%clk 0:02:25.5]} 16. Nc3 {[%clk 0:02:45.1]} 16... Nf5
{[%clk 0:02:18.1]} 17. Bb6 {[%clk 0:02:43.5]} 17... Rc8 {[%clk 0:02:17.9]} 18.
Qd3 {[%clk 0:02:32.3]} 18... Qe7 {[%clk 0:02:03.8]} 19. Rae1 {[%clk 0:02:28.3]}
19... Nd7 {[%clk 0:02:01.3]} 20. Na4 {[%clk 0:01:47.8]} 20... Nxb6 {[%clk
0:01:52.6]} 21. Nxb6 {[%clk 0:01:48.7]} 21... Rce8 {[%clk 0:01:47.3]} 22. a4
{[%clk 0:01:29]} 22... Nd4 {[%clk 0:01:47.3]} 23. a5 {[%clk 0:01:25.8]} 23... f5
{[%clk 0:01:47.3]} 24. Rd1 {[%clk 0:01:12.3]} 24... e4 {[%clk 0:01:46.4]} 25.
Qa3 {[%clk 0:01:12.1]} 25... h5 {[%clk 0:01:28.4]} 26. Qa4 {[%clk 0:00:55.3]}
26... h4 {[%clk 0:01:24.3]} 27. Qd7 {[%clk 0:00:47.7]} 27... Qg5 {[%clk
0:01:14.6]} 28. Qxd6 {[%clk 0:00:42.7]} 28... Be5 {[%clk 0:01:13.2]} 29. Qa3
{[%clk 0:00:31.6]} 29... e3 {[%clk 0:00:57.8]} 30. Nd7 {[%clk 0:00:21.5]} 30...
hxg3+ {[%clk 0:00:56.7]} 31. Kh1 {[%clk 0:00:21.3]} 31... gxf2 {[%clk
0:00:45.8]} 32. Nxe5 {[%clk 0:00:19.7]} 32... e2 {[%clk 0:00:46.1]} 33. Nf3
{[%clk 0:00:15.4]} 33... Nxf3 {[%clk 0:00:37.3]} 34. Qxf3 {[%clk 0:00:16.3]}
34... exd1=Q {[%clk 0:00:34.1]} 35. Qxd1 {[%clk 0:00:13.8]} 35... Qg3 {[%clk
0:00:31.9]} 36. d6 {[%clk 0:00:12.6]} 36... Re1 {[%clk 0:00:29.1]} 37. Qd5+
{[%clk 0:00:11.1]} 37... Kh7 {[%clk 0:00:22.2]} 38. Qxb7+ {[%clk 0:00:11]} 38...
Kh6 {[%clk 0:00:22.7]} 39. Qe7 {[%clk 0:00:06.1]} 39... Rxf1+ {[%clk 0:00:21.9]}
40. Bxf1 {[%clk 0:00:06.2]} 40... Qg1# {[%clk 0:00:22.3]} 0-1

[Event "Early-Titled-Tuesday-Blitz-October-03-2023"]
[Site "Chess.com"]
[Date "2023.10.03"]
[Round "9"]
[White "Grossboss19"]
[Black "GalaxyRoman"]
[Result "0-1"]
[WhiteElo "2526"]
[BlackElo "2713"]
[TimeControl "180+1"]
[EndTime "9:46:20 PDT"]
[Termination "GalaxyRoman won by resignation"]

1. d4 {[%clk 0:02:52.3]} 1... Nf6 {[%clk 0:02:59.5]} 2. Nf3 {[%clk 0:02:50.5]}
2... e6 {[%clk 0:02:58.6]} 3. g3 {[%clk 0:02:50.3]} 3... b6 {[%clk 0:02:59]} 4.
Bg2 {[%clk 0:02:50.5]} 4... Bb7 {[%clk 0:02:59.3]} 5. O-O {[%clk 0:02:51.1]}
5... Be7 {[%clk 0:02:50.8]} 6. c4 {[%clk 0:02:50]} 6... O-O {[%clk 0:02:50]} 7.
Nc3 {[%clk 0:02:48.4]} 7... d6 {[%clk 0:02:50]} 8. Re1 {[%clk 0:02:46.6]} 8...
Nbd7 {[%clk 0:02:49.2]} 9. e4 {[%clk 0:02:45]} 9... e5 {[%clk 0:02:49.2]} 10. b3
{[%clk 0:02:38.9]} 10... Re8 {[%clk 0:02:44.6]} 11. Bb2 {[%clk 0:02:38.2]} 11...
Bf8 {[%clk 0:02:44.8]} 12. Qc2 {[%clk 0:02:29.7]} 12... g6 {[%clk 0:02:43.2]}
13. d5 {[%clk 0:02:18.4]} 13... Bg7 {[%clk 0:02:30.3]} 14. b4 {[%clk 0:02:17.5]}
14... Rf8 {[%clk 0:02:14.9]} 15. Na4 {[%clk 0:02:01.7]} 15... Ne8 {[%clk
0:02:06.7]} 16. c5 {[%clk 0:01:59.6]} 16... Bc8 {[%clk 0:01:44.6]} 17. Nd2
{[%clk 0:01:40.3]} 17... f5 {[%clk 0:01:27.3]} 18. Rac1 {[%clk 0:01:29.9]} 18...
Ndf6 {[%clk 0:00:57.1]} 19. Nc3 {[%clk 0:01:21.9]} 19... Rf7 {[%clk 0:00:32.8]}
20. Nc4 {[%clk 0:00:54.1]} 20... Ba6 {[%clk 0:00:13.8]} 21. Ne3 {[%clk
0:00:39.7]} 21... f4 {[%clk 0:00:12.9]} 22. Ned1 {[%clk 0:00:38.9]} 22... Nh5
{[%clk 0:00:07.3]} 23. g4 {[%clk 0:00:27.7]} 23... f3 {[%clk 0:00:05.8]} 24. Bh1
{[%clk 0:00:19.1]} 24... Nf4 {[%clk 0:00:05.8]} 25. Bxf3 {[%clk 0:00:11.5]}
25... Qh4 {[%clk 0:00:05.9]} 26. Ne3 {[%clk 0:00:05.6]} 26... Nh3+ {[%clk
0:00:05.7]} 27. Kg2 {[%clk 0:00:05.8]} 27... Rxf3 {[%clk 0:00:04.5]} 28. Kxf3
{[%clk 0:00:05.2]} 28... Ng5+ {[%clk 0:00:04.1]} 29. Kg2 {[%clk 0:00:02.9]}
29... Qh3+ {[%clk 0:00:04.6]} 30. Kh1 {[%clk 0:00:03.3]} 30... Nf3 {[%clk
0:00:05]} 31. Nf1 {[%clk 0:00:02.2]} 31... Bxf1 {[%clk 0:00:05]} 0-1

[Event "Early-Titled-Tuesday-Blitz-October-03-2023"]
[Site "Chess.com"]
[Date "2023.10.03"]
[Round "9"]
[White "LeoLV10"]
[Black "verrbaa"]
[Result "1-0"]
[WhiteElo "2583"]
[BlackElo "2460"]
[TimeControl "180+1"]
[EndTime "9:46:20 PDT"]
[Termination "LeoLV10 won on time"]

1. e4 {[%clk 0:02:53.7]} 1... e5 {[%clk 0:02:59.3]} 2. Nf3 {[%clk 0:02:53.5]}
2... Nc6 {[%clk 0:02:59.1]} 3. Bb5 {[%clk 0:02:54.1]} 3... a6 {[%clk 0:02:59.2]}
4. Ba4 {[%clk 0:02:54.6]} 4... Nf6 {[%clk 0:02:59.3]} 5. O-O {[%clk 0:02:55]}
5... Be7 {[%clk 0:02:59.3]} 6. c3 {[%clk 0:02:49.9]} 6... Nxe4 {[%clk
0:02:41.9]} 7. Re1 {[%clk 0:02:50]} 7... Nf6 {[%clk 0:02:28.1]} 8. Nxe5 {[%clk
0:02:46.7]} 8... Nxe5 {[%clk 0:02:24.1]} 9. Rxe5 {[%clk 0:02:46.4]} 9... O-O
{[%clk 0:02:24.2]} 10. d4 {[%clk 0:02:46.3]} 10... d5 {[%clk 0:02:12.9]} 11. Bg5
{[%clk 0:02:44.5]} 11... h6 {[%clk 0:02:10]} 12. Bh4 {[%clk 0:02:30.7]} 12...
Be6 {[%clk 0:02:08.5]} 13. Re1 {[%clk 0:02:24.2]} 13... Ne4 {[%clk 0:01:46.4]}
14. Bxe7 {[%clk 0:02:23]} 14... Qxe7 {[%clk 0:01:47.3]} 15. Nd2 {[%clk
0:02:21.6]} 15... Nxd2 {[%clk 0:01:40.1]} 16. Qxd2 {[%clk 0:02:22.5]} 16... b6
{[%clk 0:01:37.3]} 17. Re3 {[%clk 0:02:19.1]} 17... Qd6 {[%clk 0:01:33.2]} 18.
Rae1 {[%clk 0:02:18.1]} 18... c5 {[%clk 0:01:31.3]} 19. h3 {[%clk 0:02:15.3]}
19... c4 {[%clk 0:01:10.8]} 20. Rg3 {[%clk 0:02:11.1]} 20... Kh8 {[%clk
0:01:09.7]} 21. Re5 {[%clk 0:02:07.2]} 21... b5 {[%clk 0:01:07.2]} 22. Bc2
{[%clk 0:02:07.1]} 22... Rab8 {[%clk 0:01:02.5]} 23. Rh5 {[%clk 0:02:05.8]}
23... Bd7 {[%clk 0:01:01.5]} 24. Qg5 {[%clk 0:01:41.1]} 24... Rg8 {[%clk
0:00:53.4]} 25. Qxd5 {[%clk 0:01:37.7]} 25... Qxd5 {[%clk 0:00:39.9]} 26. Rxd5
{[%clk 0:01:36.8]} 26... Be6 {[%clk 0:00:39.1]} 27. Rd6 {[%clk 0:01:31.1]} 27...
a5 {[%clk 0:00:31.3]} 28. Ra6 {[%clk 0:01:29.7]} 28... Ra8 {[%clk 0:00:20]} 29.
Rb6 {[%clk 0:01:22.6]} 29... Rgb8 {[%clk 0:00:19.4]} 30. Rd6 {[%clk 0:01:19.3]}
30... Rd8 {[%clk 0:00:15]} 31. Rxd8+ {[%clk 0:01:07.4]} 31... Rxd8 {[%clk
0:00:15.9]} 32. Be4 {[%clk 0:01:06.9]} 32... b4 {[%clk 0:00:15.6]} 33. Bc6
{[%clk 0:00:57.3]} 33... Kg8 {[%clk 0:00:11.9]} 34. Re3 {[%clk 0:00:56.3]} 34...
Kf8 {[%clk 0:00:11.8]} 35. Re5 {[%clk 0:00:54.8]} 35... bxc3 {[%clk 0:00:05.3]}
36. bxc3 {[%clk 0:00:55.7]} 36... Rd6 {[%clk 0:00:05.6]} 37. Ba4 {[%clk
0:00:46.3]} 37... Rb6 {[%clk 0:00:04.2]} 38. Rb5 {[%clk 0:00:40.4]} 38... Ra6
{[%clk 0:00:04.5]} 39. Rb7 {[%clk 0:00:37.7]} 39... f5 {[%clk 0:00:02.2]} 40.
Kf1 {[%clk 0:00:36.5]} 40... Ra8 {[%clk 0:00:01.8]} 41. Bc6 {[%clk 0:00:30.2]}
41... Rc8 {[%clk 0:00:01.5]} 42. d5 {[%clk 0:00:30.2]} 42... Bf7 {[%clk
0:00:01.1]} 43. Ke2 {[%clk 0:00:26.1]} 43... Rd8 {[%clk 0:00:01.3]} 44. Rb5
{[%clk 0:00:25.4]} 1-0

[Event "Early-Titled-Tuesday-Blitz-October-03-2023"]
[Site "Chess.com"]
[Date "2023.10.03"]
[Round "9"]
[White "MikaelyanArman"]
[Black "jk13"]
[Result "1/2-1/2"]
[WhiteElo "2844"]
[BlackElo "2637"]
[TimeControl "180+1"]
[EndTime "9:46:25 PDT"]
[Termination "Game drawn by repetition"]

1. d4 {[%clk 0:03:00.9]} 1... Nf6 {[%clk 0:02:53.1]} 2. Nf3 {[%clk 0:03:01.5]}
2... e6 {[%clk 0:02:54]} 3. g3 {[%clk 0:03:01.9]} 3... d5 {[%clk 0:02:54.1]} 4.
Bg2 {[%clk 0:03:02.5]} 4... b5 {[%clk 0:02:54.7]} 5. O-O {[%clk 0:03:02.9]} 5...
Nbd7 {[%clk 0:02:54.2]} 6. a4 {[%clk 0:03:03.4]} 6... b4 {[%clk 0:02:54.1]} 7.
c4 {[%clk 0:03:04]} 7... bxc3 {[%clk 0:02:55]} 8. Nxc3 {[%clk 0:03:03.6]} 8...
Be7 {[%clk 0:02:54.5]} 9. Bf4 {[%clk 0:03:03.7]} 9... c6 {[%clk 0:02:54.3]} 10.
a5 {[%clk 0:03:03.9]} 10... Ba6 {[%clk 0:02:53.9]} 11. Qa4 {[%clk 0:03:03.3]}
11... Rc8 {[%clk 0:02:51.5]} 12. Rfc1 {[%clk 0:03:03.8]} 12... O-O {[%clk
0:02:50.9]} 13. b4 {[%clk 0:03:04.2]} 13... Nh5 {[%clk 0:02:06]} 14. Bd2 {[%clk
0:03:03.1]} 14... Nhf6 {[%clk 0:02:06]} 15. b5 {[%clk 0:03:02.1]} 15... cxb5
{[%clk 0:02:06.3]} 16. Nxb5 {[%clk 0:03:03]} 16... Rxc1+ {[%clk 0:02:00.3]} 17.
Rxc1 {[%clk 0:03:03.9]} 17... Qb8 {[%clk 0:01:59.9]} 18. Rb1 {[%clk 0:02:51.2]}
18... Bxb5 {[%clk 0:01:41.5]} 19. Qxb5 {[%clk 0:02:47.4]} 19... Qxb5 {[%clk
0:01:23.8]} 20. Rxb5 {[%clk 0:02:48.3]} 20... Rb8 {[%clk 0:01:23.6]} 21. Rxb8+
{[%clk 0:02:46.8]} 21... Nxb8 {[%clk 0:01:24.5]} 22. Ne5 {[%clk 0:02:47.2]}
22... Nfd7 {[%clk 0:01:20.5]} 23. Nxd7 {[%clk 0:02:39.2]} 23... Nxd7 {[%clk
0:01:20.7]} 24. e3 {[%clk 0:02:40.1]} 24... Kf8 {[%clk 0:00:57.1]} 25. Bf1
{[%clk 0:02:40.4]} 25... Ke8 {[%clk 0:00:57.5]} 26. Bb5 {[%clk 0:02:40.9]} 26...
Kd8 {[%clk 0:00:57.8]} 27. Kf1 {[%clk 0:02:39.6]} 27... Kc7 {[%clk 0:00:56.9]}
28. Ke2 {[%clk 0:02:40.1]} 28... Bd6 {[%clk 0:00:52.8]} 29. Kd3 {[%clk
0:02:40.4]} 29... f5 {[%clk 0:00:52.1]} 30. h4 {[%clk 0:02:40.5]} 30... Nb8
{[%clk 0:00:47.9]} 31. Kc2 {[%clk 0:02:35.3]} 31... Nc6 {[%clk 0:00:46.1]} 32.
Kb3 {[%clk 0:02:35.1]} 32... Kb7 {[%clk 0:00:44.6]} 33. Bd3 {[%clk 0:02:28.8]}
33... Kc7 {[%clk 0:00:40.7]} 34. h5 {[%clk 0:02:28.4]} 34... g6 {[%clk
0:00:37.1]} 35. hxg6 {[%clk 0:02:17.5]} 35... hxg6 {[%clk 0:00:37.2]} 36. Ka4
{[%clk 0:02:18.3]} 36... g5 {[%clk 0:00:32.3]} 37. f4 {[%clk 0:02:07.7]} 37...
g4 {[%clk 0:00:29.5]} 38. Kb5 {[%clk 0:02:04.3]} 38... Kb7 {[%clk 0:00:29.6]}
39. a6+ {[%clk 0:01:31.4]} 39... Kc7 {[%clk 0:00:29.6]} 40. Ka4 {[%clk
0:01:32.2]} 40... Kd7 {[%clk 0:00:27.7]} 41. Bb5 {[%clk 0:01:29.4]} 41... Kc7
{[%clk 0:00:28.3]} 42. Bc3 {[%clk 0:01:29.2]} 42... Be7 {[%clk 0:00:27.4]} 43.
Bb2 {[%clk 0:01:20.5]} 43... Bd6 {[%clk 0:00:26.5]} 44. Bc1 {[%clk 0:01:18.9]}
44... Be7 {[%clk 0:00:25.8]} 45. Bd2 {[%clk 0:01:19.4]} 45... Bd6 {[%clk
0:00:26.2]} 46. Be2 {[%clk 0:01:15.3]} 46... Be7 {[%clk 0:00:26.3]} 47. Kb5
{[%clk 0:01:14.6]} 47... Bd6 {[%clk 0:00:25.9]} 48. Bc3 {[%clk 0:01:06.6]} 48...
Ba3 {[%clk 0:00:25.6]} 49. Bd2 {[%clk 0:00:55.3]} 49... Bd6 {[%clk 0:00:26.1]}
50. Bd1 {[%clk 0:00:53.9]} 50... Ba3 {[%clk 0:00:26]} 51. Bb3 {[%clk 0:00:54.5]}
51... Bd6 {[%clk 0:00:26.1]} 52. Bc1 {[%clk 0:00:48.5]} 52... Be7 {[%clk
0:00:26]} 53. Bd2 {[%clk 0:00:38.9]} 53... Bd6 {[%clk 0:00:26.4]} 54. Bc3 {[%clk
0:00:37.1]} 54... Be7 {[%clk 0:00:26.2]} 55. e4 {[%clk 0:00:36.3]} 55... fxe4
{[%clk 0:00:24.8]} 56. Bd1 {[%clk 0:00:36.4]} 56... Bf6 {[%clk 0:00:22.5]} 57.
Kc5 {[%clk 0:00:36.4]} 57... Be7+ {[%clk 0:00:21.9]} 58. Kb5 {[%clk 0:00:36.5]}
58... Bf6 {[%clk 0:00:22.5]} 59. Kc5 {[%clk 0:00:27.4]} 59... Be7+ {[%clk
0:00:22.5]} 60. Kb5 {[%clk 0:00:27.9]} 1/2-1/2

[Event "Early-Titled-Tuesday-Blitz-October-03-2023"]
[Site "Chess.com"]
[Date "2023.10.03"]
[Round "9"]
[White "Mystery2007"]
[Black "hakanazeri2"]
[Result "0-1"]
[WhiteElo "2468"]
[BlackElo "2596"]
[TimeControl "180+1"]
[EndTime "9:46:26 PDT"]
[Termination "hakanazeri2 won on time"]

1. e4 {[%clk 0:03:00.9]} 1... c5 {[%clk 0:02:59.7]} 2. Nf3 {[%clk 0:03:00.9]}
2... d6 {[%clk 0:03:00.4]} 3. d4 {[%clk 0:03:00.4]} 3... cxd4 {[%clk 0:03:01.3]}
4. Nxd4 {[%clk 0:03:00.6]} 4... Nf6 {[%clk 0:03:01.9]} 5. Nc3 {[%clk 0:03:00.7]}
5... a6 {[%clk 0:03:02]} 6. Bg5 {[%clk 0:03:00.7]} 6... e6 {[%clk 0:03:02.1]} 7.
f4 {[%clk 0:03:00.7]} 7... Be7 {[%clk 0:03:02.6]} 8. Qf3 {[%clk 0:03:00.1]} 8...
Qc7 {[%clk 0:03:02.1]} 9. O-O-O {[%clk 0:02:59.9]} 9... Nbd7 {[%clk 0:03:02.1]}
10. g4 {[%clk 0:02:59.8]} 10... b5 {[%clk 0:03:01.9]} 11. Bxf6 {[%clk
0:02:59.5]} 11... Nxf6 {[%clk 0:03:02.8]} 12. g5 {[%clk 0:02:59.4]} 12... Nd7
{[%clk 0:03:03.2]} 13. f5 {[%clk 0:02:59.9]} 13... O-O {[%clk 0:03:02.5]} 14.
Qh5 {[%clk 0:02:57.3]} 14... Ne5 {[%clk 0:02:47.8]} 15. Rg1 {[%clk 0:02:30.2]}
15... b4 {[%clk 0:02:44.1]} 16. Nce2 {[%clk 0:02:20.1]} 16... Bb7 {[%clk
0:00:30.6]} 17. f6 {[%clk 0:01:36.2]} 17... Bd8 {[%clk 0:00:29.9]} 18. Ng3
{[%clk 0:01:19.7]} 18... Rc8 {[%clk 0:00:23.5]} 19. Rd2 {[%clk 0:00:55.9]} 19...
d5 {[%clk 0:00:20.1]} 20. Ngf5 {[%clk 0:00:44.6]} 20... exf5 {[%clk 0:00:16.4]}
21. Nxf5 {[%clk 0:00:45]} 21... Qc5 {[%clk 0:00:07.3]} 22. Rg3 {[%clk 0:00:37]}
22... dxe4 {[%clk 0:00:05]} 23. Nh6+ {[%clk 0:00:29.4]} 23... Kh8 {[%clk
0:00:02.5]} 24. fxg7+ {[%clk 0:00:28.6]} 24... Kxg7 {[%clk 0:00:03.1]} 25. Nf5+
{[%clk 0:00:27.6]} 25... Kg8 {[%clk 0:00:03.2]} 26. Rh3 {[%clk 0:00:21.1]} 26...
Nd3+ {[%clk 0:00:03.7]} 27. Bxd3 {[%clk 0:00:19.4]} 27... Qxf5 {[%clk 0:00:03]}
28. Kb1 {[%clk 0:00:11.6]} 28... exd3 {[%clk 0:00:02.8]} 29. Rhxd3 {[%clk
0:00:08.5]} 29... Be4 {[%clk 0:00:02.7]} 30. Rf2 {[%clk 0:00:05.1]} 30... Bxd3
{[%clk 0:00:02.5]} 31. Rxf5 {[%clk 0:00:04.7]} 31... Bxc2+ {[%clk 0:00:03.1]}
32. Ka1 {[%clk 0:00:04.7]} 32... Bxf5 {[%clk 0:00:03.6]} 33. a3 {[%clk
0:00:03.5]} 33... Rc1+ {[%clk 0:00:03]} 34. Ka2 {[%clk 0:00:03.8]} 34... b3+
{[%clk 0:00:03.2]} 35. Kxb3 {[%clk 0:00:04]} 35... Be6+ {[%clk 0:00:03.7]} 0-1